bitfinex/quotes_ETHUSD_20250604
["timestamp","ask_amount","ask_price","bid_price","bid_amount"]
[1749026316901,0.20200479,2639.7,2639.3,8.0]
[1749026317283,1.2735,2639.6,2639.3,8.0]
[1749026318210,1.2735,2639.6,2639.0,2.77215462]
[1749026318503,1.2735,2639.6,2639.1,8.0]
[1749026319820,1.2735,2639.6,2639.3,8.0]
[1749026321706,0.818,2639.5,2639.4,10.77215462]
[1749026322294,1.2735,2639.6,2639.4,10.77215462]
[1749026323814,1.2735,2639.6,2639.4,2.77215462]
[1749026324407,1.2988,2639.8,2639.4,2.77215462]
[1749026324609,1.2988,2639.8,2639.6,2.77215462]
[1749026324610,0.818,2639.7,2639.6,2.77215462]
[1749026325309,1.1896,2639.6,2639.0,10.0]
[1749026325508,0.55,2639.0,2637.9,2.77215462]
[1749026325821,2.1055,2638.9,2638.1,2.77215462]
[1749026325988,0.55,2638.8,2638.1,2.77215462]
[1749026326183,2.1055,2638.9,2638.5,2.77215462]
[1749026327275,1.2875,2638.9,2638.2,5.52565103]
[1749026327501,2.1055,2638.9,2638.2,5.52565103]
[1749026328713,1.2875,2638.9,2638.2,5.52565103]
[1749026328922,0.818,2638.8,2638.2,5.52565103]
[1749026329983,0.818,2638.8,2638.3,0.5910651]
[1749026331521,1.2875,2638.9,2638.3,0.5910651]
[1749026331678,2.1055,2638.9,2638.3,0.5910651]
[1749026331890,1.2875,2638.9,2638.3,0.5910651]
[1749026332085,2.1055,2638.9,2638.3,0.5910651]
[1749026332403,2.1055,2638.9,2638.5,5.24843557]
[1749026332707,1.2875,2638.9,2638.5,5.24843557]
[1749026335494,1.2875,2638.9,2638.2,5.52565103]
[1749026336486,1.2875,2638.9,2638.2,0.27721546]
[1749026336725,1.49805,2638.9,2638.2,0.27721546]
[1749026336930,1.49805,2638.9,2638.1,4.001118]
[1749026337230,1.2875,2638.9,2638.3,8.0]
[1749026337399,2.1055,2638.9,2638.5,5.24843557]
[1749026338017,1.2875,2638.9,2638.6,8.0]
[1749026338185,0.21170479,2639.7,2638.6,8.0]
[1749026338186,0.818,2639.1,2638.6,8.0]
[1749026338391,0.818,2639.1,2638.7,1.32484356]
[1749026338818,0.818,2639.1,2638.5,5.24843557]
[1749026340447,0.818,2639.1,2638.4,5.24843557]
[1749026340628,0.818,2639.1,2638.5,9.799303]
[1749026341160,1.2229,2639.2,2638.5,9.799303]
[1749026341327,2.0409,2639.2,2638.5,9.799303]
[1749026342971,2.0409,2639.2,2638.7,5.24843557]
[1749026342972,1.2229,2639.2,2638.7,5.24843557]
[1749026343260,1.2229,2639.2,2638.5,9.799303]
[1749026343261,0.818,2639.4,2639.0,5.24843557]
[1749026343672,1.3103,2639.8,2639.1,10.0]
[1749026343884,0.818,2639.6,2639.1,10.0]
[1749026344094,0.818,2639.6,2639.2,10.0]
[1749026344238,0.818,2639.6,2639.1,10.0]
[1749026344593,1.3103,2639.8,2639.1,10.0]
[1749026344735,1.3103,2639.8,2639.3,10.0]
[1749026346480,1.3103,2639.8,2639.2,8.0]
[1749026346781,1.3103,2639.8,2639.2,10.0]
[1749026347283,1.3103,2639.8,2639.4,8.0]
[1749026350474,0.55,2639.5,2638.5,10.0]
[1749026350649,1.2717,2639.4,2638.8,18.0]
[1749026350847,1.2717,2639.4,2638.7,8.0]
[1749026351270,1.2717,2639.4,2639.0,8.0]
[1749026351516,1.2717,2639.4,2638.7,8.0]
[1749026352219,1.2717,2639.4,2637.9,1.49042783]
[1749026352220,1.2717,2639.4,2638.4,2.77356437]
[1749026352423,0.55,2639.3,2638.5,8.0]
[1749026352567,1.2526,2639.2,2638.5,8.0]
[1749026352767,1.2526,2639.4,2638.5,8.0]
[1749026352965,1.2526,2639.4,2639.1,8.0]
[1749026353275,1.2526,2639.4,2639.0,2.77356437]
[1749026353276,1.2526,2639.4,2639.3,8.0]
[1749026354307,1.2588,2639.6,2639.3,8.0]
[1749026355272,1.2588,2639.6,2639.1,8.0]
[1749026355570,2.0768,2639.6,2639.0,8.0]
[1749026355875,2.0768,2639.6,2639.1,10.0]
[1749026358406,2.08794789,2639.9,2639.3,8.0]
[1749026358611,2.08794789,2639.9,2639.2,5.87630533]
[1749026359432,2.08794789,2639.9,2639.2,5.28757585]
[1749026360144,2.08794789,2639.9,2639.3,10.0]
[1749026360429,2.08794789,2639.9,2639.4,10.0]
[1749026360783,1.26994789,2639.9,2639.4,10.0]
[1749026363929,1.26994789,2639.9,2639.5,8.0]
[1749026364134,1.26994789,2639.9,2639.3,8.58872948]
[1749026364511,1.26994789,2639.9,2639.5,8.0]
[1749026365401,1.26994789,2639.9,2639.3,8.58872948]
[1749026365598,0.00024789,2639.9,2639.3,8.58872948]
[1749026365898,0.00024789,2639.9,2639.8,23.24517585]
[1749026366098,2.0569,2640.8,2640.0,10.0]
[1749026366313,2.0569,2640.8,2640.4,8.0]
[1749026367141,1.2399,2640.8,2640.4,8.0]
[1749026367453,1.2399,2640.8,2640.2,8.0]
[1749026367593,1.2399,2640.8,2640.0,8.0]
[1749026367806,1.2399,2640.8,2640.3,10.0]
[1749026368105,1.2399,2640.8,2640.5,8.0]
[1749026368454,1.44759,2640.8,2640.2,8.0]
[1749026368628,1.44759,2640.8,2640.0,8.0]
[1749026368829,1.44759,2640.8,2640.2,8.0]
[1749026369546,1.44759,2640.8,2640.1,8.0]
[1749026370029,1.44759,2640.8,2639.9,13.463735]
[1749026370230,1.430959,2640.7,2639.8,8.0]
[1749026370435,1.430959,2640.7,2639.9,10.0]
[1749026370608,1.430959,2640.7,2639.8,5.24517585]
[1749026370804,1.430959,2640.7,2640.0,8.0]
[1749026371143,1.430959,2640.7,2639.8,5.24517585]
[1749026371458,1.430959,2640.7,2640.1,10.0]
[1749026371611,1.430959,2640.7,2640.2,8.0]
[1749026372569,1.2025,2640.7,2640.4,8.0]
[1749026377176,1.2025,2640.7,2640.4,2.77146797]
[1749026377549,1.2025,2640.7,2640.5,8.0]
[1749026378251,1.2025,2640.7,2640.3,8.0]
[1749026378859,1.2025,2640.7,2639.9,8.0]
[1749026379586,1.2025,2640.7,2640.3,8.0]
[1749026379587,0.817,2640.6,2640.3,8.0]
[1749026379917,2.22345,2640.7,2640.3,8.0]
[1749026380383,1.40645,2640.7,2640.3,8.0]
[1749026380679,2.22345,2640.7,2640.3,8.0]
[1749026381084,1.2025,2640.7,2640.3,8.0]
[1749026382679,1.2025,2640.7,2640.0,0.82472948]
[1749026382680,1.2025,2640.7,2640.6,10.77146797]
[1749026383807,1.2025,2640.7,2640.6,8.0]
[1749026385805,1.7525,2640.7,2640.6,8.0]
[1749026386006,1.8225,2640.7,2640.6,8.0]
[1749026386169,1.3347,2640.5,2639.7,2.77146797]
[1749026386373,1.3347,2640.5,2639.9,2.77146797]
[1749026386672,1.3347,2640.5,2640.0,8.0]
[1749026390923,2.1517,2640.5,2640.2,8.0]
[1749026391690,2.1517,2640.5,2639.9,3.36019745]
[1749026391919,2.1517,2640.5,2640.0,8.0]
[1749026394129,2.393465,2640.5,2639.9,0.58872948]
[1749026394296,2.393465,2640.5,2640.0,8.0]
[1749026394491,1.2692,2640.4,2640.0,8.0]
[1749026394693,1.2692,2640.4,2639.7,2.77146797]
[1749026394975,1.2692,2640.4,2639.8,8.0]
[1749026395099,1.5019965,2640.4,2639.8,8.0]
[1749026395913,1.5019965,2640.4,2639.6,8.58872948]
[1749026400961,1.5019965,2640.4,2639.0,0.29782468]
[1749026400962,1.3438,2640.2,2639.3,2.77146797]
[1749026401262,1.3438,2640.2,2639.4,8.0]
[1749026401966,1.3463,2640.0,2639.4,8.0]
[1749026402271,1.3463,2639.8,2639.4,8.0]
[1749026405324,1.3463,2639.8,2639.5,2.77146797]
[1749026405524,1.3463,2639.8,2639.6,8.58872948]
[1749026407583,1.3463,2639.8,2639.6,8.0]
[1749026408088,1.3463,2639.8,2639.3,0.58872948]
[1749026408287,1.3463,2639.8,2639.5,2.77146797]
[1749026408457,1.3463,2639.8,2639.6,8.0]
[1749026409764,1.56263,2639.8,2639.4,8.0]
[1749026410587,1.3463,2639.8,2639.5,0.58872948]
[1749026411861,1.3463,2639.8,2639.3,2.06187729]
[1749026412207,1.3463,2639.8,2639.3,2.77146797]
[1749026413887,1.3463,2639.8,2639.4,8.0]
[1749026414509,1.33286,2639.8,2639.4,8.0]
[1749026414712,1.33286,2639.8,2639.7,2.77146797]
[1749026414913,0.817,2640.1,2639.8,8.0]
[1749026416611,0.817,2640.1,2639.7,2.35883346]
[1749026417615,2.1152,2640.1,2639.7,2.35883346]
[1749026420036,1.2982,2640.1,2639.7,2.35883346]
[1749026420714,1.2982,2640.1,2639.6,8.0]
[1749026420910,1.2647,2639.9,2639.6,8.0]
[1749026429349,1.2647,2639.9,2639.8,8.0]
[1749026430750,1.2647,2639.9,2639.6,8.0]
[1749026437976,0.816,2640.1,2639.8,8.0]
[1749026438176,2.096,2640.1,2639.8,8.0]
[1749026440127,1.2794,2640.0,2639.6,8.0]
[1749026440337,1.2794,2640.0,2639.2,0.53966869]
[1749026440338,1.2794,2640.0,2639.2,8.0]
[1749026441054,1.2794,2640.0,2639.1,2.77146797]
[1749026441254,1.2794,2640.0,2639.2,8.0]
[1749026441458,0.2305,2639.9,2639.2,8.0]
[1749026441645,1.2902,2639.8,2639.4,8.0]
[1749026443671,2.1062,2639.8,2639.6,8.0]
[1749026444528,2.1062,2639.8,2639.4,8.53966869]
[1749026444880,1.3483,2639.6,2639.2,8.0]
[1749026445329,1.3483,2639.6,2639.4,8.0]
[1749026447977,1.3483,2639.6,2639.1,3.31113666]
[1749026448152,1.3483,2639.6,2639.2,8.0]
[1749026454595,0.816,2639.8,2639.4,8.0]
[1749026454797,1.3737,2640.0,2639.6,8.0]
[1749026455003,0.816,2639.9,2639.6,8.0]
[1749026457362,0.23993,2639.9,2639.6,8.0]
[1749026457864,0.23993,2639.9,2639.4,8.0]
[1749026465931,1.05593,2639.9,2639.4,8.0]
[1749026467107,1.05593,2639.9,2639.3,1.79385118]
[1749026467416,0.23993,2639.9,2639.4,10.53968176]
[1749026467620,1.05493,2639.9,2639.4,0.53968176]
[1749026468292,0.242863,2639.8,2639.4,0.53968176]
[1749026469330,0.242863,2639.8,2639.5,10.0]
[1749026470044,0.242863,2639.8,2639.4,0.53968176]
[1749026470256,0.815,2639.9,2639.4,0.53968176]
[1749026475025,0.815,2639.9,2639.6,8.0]
[1749026475632,1.3737,2640.0,2639.4,3.31114973]
[1749026475633,1.3737,2640.0,2639.5,8.0]
[1749026475837,0.815,2639.9,2639.5,8.0]
[1749026478702,2.1887,2640.0,2639.5,8.0]
[1749026478924,2.89553,2640.0,2639.5,8.0]
[1749026479806,2.1887,2640.0,2639.5,8.0]
[1749026482309,1.3737,2640.0,2639.5,8.0]
[1749026482510,2.1887,2640.0,2639.5,8.0]
[1749026482711,1.2464,2639.9,2639.3,8.0]
[1749026482956,0.815,2640.0,2639.1,8.0]
[1749026482957,1.2464,2639.7,2639.1,8.0]
[1749026483255,1.2464,2639.7,2639.0,0.53968176]
[1749026483414,1.2464,2639.7,2638.6,2.77146797]
[1749026483952,2.77146797,2639.8,2638.6,8.0]
[1749026483953,1.3512,2639.5,2638.6,8.0]
[1749026484114,1.3512,2639.3,2638.6,8.0]
[1749026484314,0.815,2639.2,2638.6,8.0]
[1749026484627,1.3512,2639.1,2638.5,2.77146797]
[1749026484827,1.3512,2639.1,2638.6,8.0]
[1749026486025,1.3512,2639.1,2638.6,8.53968176]
[1749026486227,1.3512,2639.1,2638.7,0.53968176]
[1749026491374,1.56782,2639.1,2638.3,3.31114973]
[1749026491680,1.56782,2639.1,2638.4,8.0]
[1749026492986,1.56782,2639.1,2638.4,8.53968176]
[1749026494360,1.56782,2639.1,2638.4,0.53968176]
[1749026494670,1.56782,2639.1,2638.1,0.02]
[1749026494872,1.3075,2638.9,2638.1,8.02]
[1749026495071,1.3075,2638.9,2638.1,0.02]
[1749026496060,1.3075,2638.9,2638.1,8.55968176]
[1749026496584,0.815,2638.8,2638.1,8.55968176]
[1749026496784,1.2463,2638.7,2638.1,8.55968176]
[1749026498495,1.45243,2638.7,2638.1,8.55968176]
[1749026498887,1.45243,2638.7,2638.1,1.00567461]
[1749026499685,1.45243,2638.7,2638.0,2.77146797]
[1749026499686,1.45243,2638.7,2637.8,2.77146797]
[1749026500212,1.45243,2638.7,2638.0,2.77146797]
[1749026501293,1.2341,2638.5,2638.0,2.77146797]
[1749026508706,1.2341,2638.5,2638.1,8.0]
[1749026511109,2.0481,2638.5,2638.1,8.0]
[1749026511677,1.2341,2638.5,2638.1,8.0]
[1749026511877,2.0481,2638.5,2638.1,8.0]
[1749026514915,0.814,2638.7,2638.4,12.77146797]
[1749026515114,0.814,2638.7,2638.4,2.77146797]
[1749026515992,1.2605,2638.9,2638.4,2.77146797]
[1749026516196,0.814,2638.8,2638.4,2.77146797]
[1749026516921,2.0745,2638.9,2638.4,2.77146797]
[1749026518422,0.814,2638.8,2638.4,2.77146797]
[1749026518723,1.2605,2638.9,2638.7,10.0]
[1749026518882,1.2605,2638.9,2638.8,10.77146797]
[1749026520007,1.2605,2638.9,2638.4,0.1931]
[1749026520008,1.2605,2638.9,2638.7,8.0]
[1749026520213,1.2605,2638.9,2638.6,0.9286274]
[1749026524057,1.2605,2638.9,2638.4,8.0]
[1749026524058,1.2605,2638.9,2638.4,2.77146797]
[1749026525467,1.2605,2638.9,2638.7,8.0]
[1749026537783,2.0735,2638.9,2638.7,8.0]
[1749026540966,2.0735,2638.9,2638.5,8.0]
[1749026541176,2.0735,2638.9,2638.3,8.0]
[1749026543099,2.0735,2638.9,2638.5,8.0]
[1749026543304,2.28085,2638.9,2638.5,8.0]
[1749026545262,2.0735,2638.9,2638.5,8.0]
[1749026547376,0.813,2638.8,2638.5,8.0]
[1749026548077,0.813,2638.8,2638.4,2.77146797]
[1749026549969,1.2429,2638.7,2638.2,2.77146797]
[1749026550312,0.20559,2638.6,2638.2,2.77146797]
[1749026553407,0.20559,2638.6,2638.3,8.0]
[1749026554389,1.2233,2638.5,2638.3,8.0]
[1749026555211,1.2233,2638.5,2638.0,2.77146797]
[1749026556927,2.0363,2638.5,2638.1,8.0]
[1749026557319,2.0363,2638.5,2638.3,8.0]
[1749026558221,2.260489,2638.5,2638.3,8.0]
[1749026559522,2.0363,2638.5,2638.3,8.0]
[1749026560319,0.811,2638.6,2638.4,2.77146797]
[1749026560957,0.811,2638.6,2638.3,8.0]
[1749026561425,0.811,2638.6,2638.3,2.77146797]
[1749026562299,1.3361,2638.5,2638.4,8.0]
[1749026562496,1.3361,2638.5,2638.1,2.77146797]
[1749026562819,1.3361,2638.5,2638.2,8.0]
[1749026566206,1.3361,2638.5,2638.4,8.0]
[1749026568023,2.1471,2638.5,2638.4,8.0]
[1749026571242,2.36181,2638.5,2638.2,8.0]
[1749026571549,2.1471,2638.5,2638.2,8.0]
[1749026574353,1.31,2638.4,2637.9,0.59175949]
[1749026576554,0.55,2638.3,2637.9,0.59175949]
[1749026576758,1.3003,2638.2,2637.9,0.59175949]
[1749026580468,1.3003,2638.2,2637.5,2.77146797]
[1749026580771,1.3003,2638.2,2637.6,8.0]
[1749026580937,1.2624,2638.0,2637.3,3.36337907]
[1749026581128,1.2624,2638.0,2637.4,8.0]
[1749026583476,1.2624,2638.0,2637.3,2.74911032]
[1749026583635,0.812,2637.9,2637.5,2.77146797]
[1749026585067,1.2451,2637.8,2637.4,0.49470828]
[1749026585387,0.55,2637.5,2636.6,2.77146797]
[1749026585673,1.2451,2637.4,2636.8,2.77146797]
[1749026587779,1.2451,2637.4,2637.0,2.77146797]
[1749026587978,0.812,2637.3,2637.2,2.77146797]
[1749026588184,1.2451,2637.4,2637.2,2.77146797]
[1749026588370,0.812,2637.4,2637.3,10.4616598]
[1749026588570,0.812,2637.6,2637.3,0.4616598]
[1749026588777,0.81,2637.6,2637.4,2.77146797]
[1749026589081,0.81,2637.8,2637.5,10.4616598]
[1749026589272,0.2,2640.2,2637.5,10.4616598]
[1749026589273,1.2578,2638.6,2637.9,0.0881]
[1749026589468,0.81,2638.5,2638.2,2.77146797]
[1749026589682,0.81,2638.5,2638.0,2.77146797]
[1749026590784,0.81,2638.5,2638.0,12.77146797]
[1749026591082,0.81,2638.5,2638.1,8.0]
[1749026591244,0.81,2638.5,2637.8,2.77146797]
[1749026591576,1.3153,2638.4,2637.7,8.0881]
[1749026593584,1.3153,2638.4,2637.7,8.0]
[1749026593786,1.3153,2638.4,2637.5,0.0881]
[1749026593787,1.3153,2638.4,2637.5,8.0881]
[1749026594097,1.3016,2638.2,2637.5,8.0]
[1749026595206,1.3016,2638.2,2637.7,8.0]
[1749026595690,0.81,2638.1,2637.7,8.0]
[1749026596100,0.81,2638.1,2637.6,2.77146797]
[1749026596916,0.81,2638.1,2637.7,10.0]
[1749026597953,2.1116,2638.2,2637.8,2.77146797]
[1749026600678,1.3016,2638.2,2637.8,2.77146797]
[1749026600993,0.81,2638.3,2638.1,10.0]
[1749026601185,0.81,2638.3,2638.0,2.77146797]
[1749026601364,1.332,2638.5,2638.0,2.77146797]
[1749026601570,0.81,2638.4,2638.0,2.85956797]
[1749026602108,2.142,2638.5,2638.0,2.85956797]
[1749026604097,1.332,2638.5,2638.1,8.0]
[1749026604397,2.142,2638.5,2638.1,8.0]
[1749026606099,1.332,2638.5,2638.2,2.77146797]
[1749026606404,0.81,2638.6,2638.2,2.77146797]
[1749026607273,1.2523,2638.5,2637.9,8.0]
[1749026614608,2.0623,2638.5,2637.9,8.0]
[1749026616605,2.26853,2638.5,2637.9,8.0]
[1749026616811,1.2396,2638.4,2637.9,8.0]
[1749026617320,1.2396,2638.4,2637.7,8.2848]
[1749026617521,1.2396,2638.4,2637.8,8.0]
[1749026617725,0.81,2638.3,2637.8,8.0]
[1749026619906,1.3022,2638.2,2637.8,8.0]
[1749026620518,1.51342,2638.2,2637.8,8.0]
[1749026623220,1.51342,2638.2,2637.5,2.77146797]
[1749026624239,1.51342,2638.2,2637.3,2.77146797]
[1749026624423,1.51342,2638.2,2637.5,10.0]
[1749026624629,1.51342,2638.2,2637.3,2.77146797]
[1749026624933,1.268,2637.9,2637.1,0.02]
[1749026625097,0.55,2637.8,2637.1,0.02]
[1749026625298,1.2793,2637.7,2637.1,0.02]
[1749026636217,0.809,2637.6,2637.0,2.77146797]
[1749026636545,1.274,2637.5,2637.0,2.77146797]
[1749026639349,1.274,2637.5,2637.1,8.0]
[1749026639854,1.274,2637.5,2637.0,2.77146797]
[1749026639855,1.4823,2637.5,2636.6,2.77146797]
[1749026640155,1.4823,2637.5,2636.7,8.0]
[1749026640156,1.2035,2637.3,2636.7,8.0]
[1749026640951,0.809,2637.2,2636.7,8.0]
[1749026641513,1.2035,2637.3,2636.1,0.02]
[1749026641514,1.2035,2637.3,2637.0,2.77146797]
[1749026641935,2.0125,2637.3,2637.0,2.77146797]
[1749026642133,2.0125,2637.3,2637.1,10.0]
[1749026642517,1.2035,2637.3,2637.0,2.77146797]
[1749026642716,1.2035,2637.3,2637.1,10.0]
[1749026643646,1.2035,2637.3,2637.0,4.902024]
[1749026643853,1.2035,2637.3,2637.1,10.0]
[1749026644038,1.2035,2637.3,2636.9,8.0]
[1749026645361,2.0125,2637.3,2636.7,20.0]
[1749026645586,2.0125,2637.3,2636.7,10.0]
[1749026647144,1.2035,2637.3,2636.9,8.0]
[1749026647362,2.0125,2637.3,2636.9,8.0]
[1749026647665,2.0125,2637.3,2637.0,10.0]
[1749026647872,2.0125,2637.3,2637.1,10.0]
[1749026649060,1.2035,2637.3,2637.1,10.0]
[1749026649455,1.2035,2637.3,2637.0,6.438488]
[1749026649654,1.2035,2637.3,2636.9,8.0]
[1749026649655,1.2035,2637.3,2637.1,10.0]
[1749026649944,1.2035,2637.3,2637.0,8.813216]
[1749026651099,1.2035,2637.3,2637.1,8.0]
[1749026651811,2.1006,2637.5,2637.3,10.0]
[1749026651984,1.2926,2637.5,2637.2,8.0]
[1749026652181,1.2926,2637.5,2637.2,3.262878]
[1749026652369,1.2926,2637.5,2637.3,10.0]
[1749026652993,1.2926,2637.5,2636.9,8.0]
[1749026653789,1.2926,2637.5,2637.1,8.0]
[1749026653992,1.2926,2637.5,2636.9,8.0]
[1749026654892,1.2926,2637.5,2637.1,8.0]
[1749026655486,1.2926,2637.5,2636.9,8.0]
[1749026655692,1.2926,2637.5,2637.1,8.0]
[1749026655899,4.67,2638.4,2637.5,8.0]
[1749026655900,1.2876,2637.9,2637.5,8.0]
[1749026656078,1.2876,2637.9,2637.5,10.0]
[1749026656403,1.2876,2638.8,2637.8,10.77146797]
[1749026656564,1.2876,2638.4,2638.0,10.77146797]
[1749026657202,0.808,2638.5,2638.0,10.77146797]
[1749026659579,0.808,2638.5,2637.8,2.77146797]
[1749026659880,0.808,2638.5,2637.9,8.0]
[1749026660076,0.808,2638.5,2638.1,8.0]
[1749026660374,0.808,2638.5,2637.9,8.0]
[1749026660574,0.808,2638.5,2638.1,8.0]
[1749026661003,0.808,2638.5,2637.9,8.0]
[1749026661209,1.3111,2638.6,2637.9,8.0]
[1749026661482,0.808,2638.5,2638.1,8.0]
[1749026662713,0.808,2638.5,2637.9,8.0]
[1749026662891,0.808,2638.5,2637.8,2.77146797]
[1749026663509,0.808,2638.5,2637.9,8.0]
[1749026663713,0.808,2638.5,2638.1,10.0]
[1749026664282,0.808,2638.5,2638.0,6.885303]
[1749026664990,0.808,2638.5,2638.0,4.363723]
[1749026665213,0.808,2638.5,2638.1,10.0]
[1749026665399,0.808,2638.5,2638.0,6.877723]
[1749026665584,1.01991,2638.5,2638.1,10.0]
[1749026666119,1.01991,2638.5,2638.0,5.003302]
[1749026666427,1.01991,2638.5,2638.1,10.0]
[1749026666778,1.211,2638.4,2637.7,2.77146797]
[1749026667389,1.211,2638.4,2637.6,10.0]
[1749026668317,0.808,2638.3,2637.6,10.0]
[1749026668621,1.2089,2638.2,2637.7,8.0]
[1749026668926,1.2089,2638.2,2637.1,0.37998075]
[1749026669130,1.2089,2638.0,2636.9,2.77146797]
[1749026669327,1.2089,2638.0,2636.8,10.0]
[1749026669328,1.2089,2638.0,2637.3,2.77146797]
[1749026669487,1.2089,2638.0,2637.4,10.0]
[1749026669488,0.808,2637.9,2637.4,10.0]
[1749026669682,0.808,2637.9,2637.4,8.463633]
[1749026670622,1.2089,2638.0,2637.4,8.463633]
[1749026670824,0.808,2637.9,2637.4,8.463633]
[1749026671697,0.808,2637.9,2637.4,3.282788]
[1749026671892,0.808,2637.9,2637.4,8.0]
[1749026672225,1.2888,2637.7,2637.4,8.0]
[1749026673293,1.2888,2637.7,2637.2,8.0]
[1749026674040,0.808,2637.6,2637.2,8.0]
[1749026676629,2.0968,2637.7,2637.4,2.77146797]
[1749026677227,0.808,2637.6,2637.4,2.77146797]
[1749026677727,1.2888,2637.7,2637.4,2.77146797]
[1749026677931,2.0968,2637.7,2637.4,2.77146797]
[1749026684457,2.0968,2637.7,2637.2,2.77146797]
[1749026684817,2.0968,2637.7,2637.3,8.0]
[1749026685234,2.30648,2637.7,2637.3,8.0]
[1749026685450,1.01768,2637.7,2637.3,8.0]
[1749026685752,1.3039,2637.6,2637.3,8.0]
[1749026689550,1.3039,2637.6,2637.3,8.0]
[1749026690260,1.3039,2637.6,2637.2,8.0]
[1749026692129,0.807,2637.5,2637.2,8.0]
[1749026696394,1.3039,2637.6,2637.4,8.0]
[1749026696597,1.3039,2637.6,2636.7,2.77146797]
[1749026696598,2.1109,2637.6,2637.5,2.77146797]
[1749026699600,1.2983,2637.8,2637.5,2.77146797]
[1749026699808,0.807,2637.7,2637.5,2.77146797]
[1749026700460,1.2983,2637.8,2637.5,3.04861477]
[1749026700658,4.633,2638.8,2637.8,18.0]
[1749026700659,0.807,2637.9,2637.8,18.0]
[1749026700859,1.2983,2638.2,2637.9,13.091974]
[1749026701099,1.2983,2638.2,2637.8,2.77146797]
[1749026701489,2.1053,2638.2,2637.9,8.0]
[1749026701698,1.2488,2638.6,2638.0,2.77146797]
[1749026701876,1.2488,2638.6,2638.2,2.77146797]
[1749026702086,1.2488,2638.6,2638.3,8.0]
[1749026702379,0.807,2638.5,2638.3,8.0]
[1749026708571,1.2488,2638.6,2638.3,8.0]
[1749026708776,2.0558,2638.6,2638.3,8.0]
[1749026713885,2.0558,2638.6,2638.1,8.0]
[1749026714227,0.20558,2638.5,2638.1,8.0]
[1749026714683,2.0558,2638.6,2638.2,2.77146797]
[1749026714888,2.0558,2638.6,2638.3,8.0]
[1749026721140,0.805,2638.5,2638.3,8.0]
[1749026721737,1.3297,2638.8,2638.4,2.77146797]
[1749026721903,0.805,2638.7,2638.4,2.77146797]
[1749026723639,0.805,2638.7,2638.6,2.77146797]
[1749026724214,0.805,2638.7,2638.5,8.0]
[1749026727408,0.805,2638.7,2638.2,2.77146797]
[1749026727842,0.805,2638.7,2638.1,8.0]
[1749026729314,1.245,2638.6,2638.1,8.0]
[1749026729847,1.245,2638.6,2638.2,2.77146797]
[1749026731847,1.245,2638.6,2638.4,8.0]
[1749026732213,0.805,2638.5,2638.4,8.0]
[1749026735459,0.805,2638.5,2638.2,1.44824687]
[1749026735867,1.2601,2638.8,2638.4,2.77146797]
[1749026736037,0.805,2638.7,2638.5,0.2771468]
[1749026736241,0.805,2638.7,2638.4,2.77146797]
[1749026742069,0.805,2638.7,2638.5,8.0]
[1749026743365,2.0651,2638.8,2638.5,8.0]
[1749026744596,1.2312,2638.6,2637.7,1.5164999]
[1749026744883,1.2312,2638.6,2637.8,8.0]
[1749026745447,1.2312,2638.6,2637.9,2.77146797]
[1749026746188,1.2312,2638.6,2638.2,8.0]
[1749026748300,0.804,2638.5,2638.2,8.0]
[1749026750183,0.804,2638.5,2638.3,2.77146797]
[1749026750383,2.0352,2638.6,2638.3,2.77146797]
[1749026751511,2.0352,2638.6,2638.1,8.0]
[1749026752216,0.804,2638.6,2638.1,8.0]
[1749026752366,1.261,2638.5,2638.1,8.0]
[1749026752766,1.261,2638.5,2638.0,1.06513285]
[1749026753377,1.4675,2638.5,2638.0,1.06513285]
[1749026755263,1.261,2638.5,2638.0,1.06513285]
[1749026758002,1.261,2638.5,2638.1,10.0]
[1749026759903,1.261,2638.5,2638.2,10.77146797]
[1749026760431,0.804,2638.6,2638.2,10.77146797]
[1749026762869,1.298,2638.7,2638.5,8.0]
[1749026763067,1.298,2638.7,2638.6,10.77146797]
[1749026763685,1.298,2638.7,2638.6,8.0]
[1749026765910,1.298,2638.7,2638.1,8.0]
[1749026766422,1.5102,2638.7,2637.6,0.31140952]
[1749026766728,1.3098,2638.5,2637.7,2.77146797]
[1749026766926,1.3098,2638.5,2637.8,8.0]
[1749026767094,1.3098,2638.3,2637.4,7.715676]
[1749026767294,1.294,2638.1,2637.5,10.0]
[1749026767494,1.294,2638.1,2637.4,8.0]
[1749026767692,1.294,2638.1,2637.5,2.77146797]
[1749026767893,1.294,2638.1,2637.6,8.0]
[1749026768441,1.294,2638.1,2637.8,10.0]
[1749026768741,1.294,2638.1,2637.6,8.0]
[1749026769240,1.294,2638.1,2637.7,2.77146797]
[1749026769445,2.098,2638.1,2637.7,2.77146797]
[1749026771091,2.098,2638.1,2637.9,2.77146797]
[1749026771692,1.294,2638.1,2637.9,2.77146797]
[1749026771931,0.804,2638.2,2637.9,2.77146797]
[1749026773331,1.01514,2638.2,2637.9,2.77146797]
[1749026773528,1.01514,2638.2,2637.8,8.0]